Workbook

Sheet 组织绩效与个人绩效分布关系
A1: 组织绩效与个人绩效分布对应关系表（仅供参考）
A2: 类目 | B2: 组织绩效/个人绩效强制比例要求 | C2: 个人绩效A比例 | D2: 个人绩效B+比例 | E2: 个人绩效B比例 | F2: 个人绩效B-/C/D比例
A3: 组织绩效 | B3: 组织绩效A | C3: 0.2 | D3: 0.3 | E3: 0.5 | F3: 0
B4: 组织绩效B+ | C4: 0.1 | D4: 0.25 | E4: 0.6 | F4: 0.05
B5: 组织绩效B | C5: 0 | D5: 0.2 | E5: 0.7 | F5: 0.1
B6: 组织绩效B-/C/D | C6: 0 | D6: 0.1 | E6: 0.7 | F6: 0.2
A8: 人数 | B8: 组织绩效/个人绩效强制比例要求 | C8: A | D8: B+ | E8: B | F8: B-/C/D
A9: 2 | B9: 组织绩效A | C9: 0 | D9: 1 | E9: =ROUND(E3*2,2) -> 1 | F9: 0
B10: 组织绩效B+ | C10: 0 | D10: 1 | E10: 1 | F10: 0
B11: 组织绩效B | C11: =ROUND(C5*2,2) -> 0 | D11: 0 | E11: 2 | F11: 0
B12: 组织绩效B-/C/D | C12: 0 | D12: 0 | E12: 2 | F12: 0
A13: 人数 | B13: 组织绩效/个人绩效强制比例要求 | C13: A | D13: B+ | E13: B | F13: B-/C/D
A14: 3 | B14: 组织绩效A | C14: 1 | D14: 1 | E14: 1 | F14: =ROUND(F3*3,2) -> 0
B15: 组织绩效B+ | C15: 0 | D15: 1 | E15: 2 | F15: 0
B16: 组织绩效B | C16: =ROUND(C5*3,2) -> 0 | D16: 1 | E16: 2 | F16: 0
B17: 组织绩效B-/C/D | C17: =ROUND(C6*3,2) -> 0 | D17: 0 | E17: 3 | F17: 0
A18: 人数 | B18: 组织绩效/个人绩效强制比例要求 | C18: A | D18: B+ | E18: B | F18: B-/C/D
A19: 4 | B19: 组织绩效A | C19: 1 | D19: 1 | E19: =ROUND(E3*4,2) -> 2 | F19: =ROUND(F3*4,2) -> 0
B20: 组织绩效B+ | C20: 1 | D20: 1 | E20: 2 | F20: 0
B21: 组织绩效B | C21: =ROUND(C5*4,2) -> 0 | D21: 1 | E21: 3 | F21: 0
B22: 组织绩效B-/C/D | C22: =ROUND(C6*4,2) -> 0 | D22: 0 | E22: 3 | F22: 1
A23: 人数 | B23: 组织绩效/个人绩效强制比例要求 | C23: A | D23: B+ | E23: B | F23: B-/C/D
A24: 5 （组织B-时就低取整） | B24: 组织绩效A | C24: =C3*5 -> 1 | D24: 2 | E24: 2 | F24: =F3*5 -> 0
B25: 组织绩效B+ | C25: 1 | D25: 1 | E25: =E4*5 -> 3 | F25: 0
B26: 组织绩效B | C26: =C5*5 -> 0 | D26: =D5*5 -> 1 | E26: 4 | F26: 0
B27: 组织绩效B-/C/D | C27: =C6*5 -> 0 | D27: 1 | E27: 3 | F27: 1
A28: 人数 | B28: 组织绩效/个人绩效强制比例要求 | C28: A | D28: B+ | E28: B | F28: B-/C/D
A29: 6 | B29: 组织绩效A | C29: =ROUND(C3*6,2) -> 1.2 | D29: =ROUND(D3*6,0) -> 2 | E29: 3 | F29: 0
B30: 组织绩效B+ | C30: =ROUND(C4*6,2) -> 0.6 | D30: =ROUND(D4*6,2) -> 1.5 | E30: 3 | F30: 0.3
B31: 组织绩效B | C31: =ROUND(C5*6,2) -> 0 | D31: 1 | E31: 4 | F31: 1
B32: 组织绩效B-/C/D | C32: =ROUND(C6*6,2) -> 0 | D32: 1 | E32: 4 | F32: 1
A33: 人数 | B33: 组织绩效/个人绩效强制比例要求 | C33: A | D33: B+ | E33: B | F33: B-/C/D
A34: 7 | B34: 组织绩效A | C34: =ROUND(C3*7,0) -> 1 | D34: 2 | E34: 4 | F34: 0
B35: 组织绩效B+ | C35: 1 | D35: 2 | E35: 4 | F35: 0
B36: 组织绩效B | C36: =ROUND(C5*7,0) -> 0 | D36: 1 | E36: 5 | F36: 1
B37: 组织绩效B-/C/D | C37: =ROUND(C6*7,0) -> 0 | D37: 1 | E37: 5 | F37: 1
A38: 人数 | B38: 组织绩效/个人绩效强制比例要求 | C38: A | D38: B+ | E38: B | F38: B-/C/D
A39: 8 | B39: 组织绩效A | C39: =ROUND(C3*8,0) -> 2 | D39: =ROUND(D3*8,0) -> 2 | E39: =ROUND(E3*8,0) -> 4 | F39: =ROUND(F3*8,0) -> 0
B40: 组织绩效B+ | C40: =ROUND(C4*8,2) -> 0.8 | D40: =ROUND(D4*8,0) -> 2 | E40: =ROUND(E4*8,0) -> 5 | F40: =ROUND(F4*8,0) -> 0
B41: 组织绩效B | C41: =ROUND(C5*8,2) -> 0 | D41: 2 | E41: 5 | F41: 1
B42: 组织绩效B-/C/D | C42: =ROUND(C6*8,2) -> 0 | D42: =ROUND(D6*8,0) -> 1 | E42: 5 | F42: 2
A43: 人数 | B43: 组织绩效/个人绩效强制比例要求 | C43: A | D43: B+ | E43: B | F43: B-/C/D
A44: 9 | B44: 组织绩效A | C44: =ROUND(C3*9,0) -> 2 | D44: =ROUND(D3*9,0) -> 3 | E44: 4 | F44: 0
B45: 组织绩效B+ | C45: =ROUND(C4*9,0) -> 1 | D45: 2 | E45: 6 | F45: 0
B46: 组织绩效B | C46: =ROUND(C5*9,0) -> 0 | D46: 2 | E46: 6 | F46: 1
B47: 组织绩效B-/C/D | C47: =ROUND(C6*9,2) -> 0 | D47: 1 | E47: 6 | F47: 2
A48: 人数 | B48: 组织绩效/个人绩效强制比例要求 | C48: A | D48: B+ | E48: B | F48: B-/C/D
A49: 10 | B49: 组织绩效A | C49: =ROUND(C3*10,0) -> 2 | D49: =ROUND(D3*10,0) -> 3 | E49: 5 | F49: 0
B50: 组织绩效B+ | C50: =ROUND(C4*10,0) -> 1 | D50: 3 | E50: 6 | F50: 0
B51: 组织绩效B | C51: 0 | D51: 2 | E51: 7 | F51: 1
B52: 组织绩效B-/C/D | C52: 0 | D52: 1 | E52: 7 | F52: 2
A53: 人数 | B53: 组织绩效/个人绩效强制比例要求 | C53: A | D53: B+ | E53: B | F53: B-/C/D
A54: 11 | B54: 组织绩效A | C54: 2 | D54: 3 | E54: 6 | F54: =ROUND(F3*11,2) -> 0
B55: 组织绩效B+ | C55: 1 | D55: 3 | E55: 7 | F55: 0
B56: 组织绩效B | C56: =ROUND(C5*11,2) -> 0 | D56: 2 | E56: 8 | F56: 1
B57: 组织绩效B-/C/D | C57: =ROUND(C6*11,2) -> 0 | D57: 1 | E57: 8 | F57: 2
A58: 人数 | B58: 组织绩效/个人绩效强制比例要求 | C58: A | D58: B+ | E58: B | F58: B-/C/D
A59: 12 （组织B-时就低取整） | B59: 组织绩效A | C59: 2 | D59: 4 | E59: =ROUND(E3*12,2) -> 6 | F59: 0
B60: 组织绩效B+ | C60: 1 | D60: =ROUND(D4*12,2) -> 3 | E60: 7 | F60: 1
B61: 组织绩效B | C61: 0 | D61: 2 | E61: 9 | F61: 1
B62: 组织绩效B-/C/D | C62: 0 | D62: 1 | E62: 8 | F62: 3
A63: 人数 | B63: 组织绩效/个人绩效强制比例要求 | C63: A | D63: B+ | E63: B | F63: B-/C/D
A64: 13 | B64: 组织绩效A | C64: 3 | D64: 4 | E64: 6 | F64: =ROUND(F3*13,2) -> 0
B65: 组织绩效B+ | C65: 1 | D65: 3 | E65: 8 | F65: 1
B66: 组织绩效B | C66: =ROUND(C5*13,2) -> 0 | D66: 3 | E66: 9 | F66: 1
B67: 组织绩效B-/C/D | C67: 0 | D67: 1 | E67: 9 | F67: 3
A68: 人数 | B68: 组织绩效/个人绩效强制比例要求 | C68: A | D68: B+ | E68: B | F68: B-/C/D
A69: 14 | B69: 组织绩效A | C69: 3 | D69: 4 | E69: =ROUND(E3*14,2) -> 7 | F69: 0
B70: 组织绩效B+ | C70: 1 | D70: 4 | E70: 8 | F70: 1
B71: 组织绩效B | C71: =ROUND(C5*14,2) -> 0 | D71: 3 | E71: 10 | F71: 1
B72: 组织绩效B-/C/D | C72: 0 | D72: 1 | E72: 10 | F72: 3
A73: 人数 | B73: 组织绩效/个人绩效强制比例要求 | C73: A | D73: B+ | E73: B | F73: B-/C/D
A74: 15 （组织B-时就低取整） | B74: 组织绩效A | C74: =ROUND(C3*15,2) -> 3 | D74: 5 | E74: 7 | F74: =ROUND(F3*15,2) -> 0
B75: 组织绩效B+ | C75: 2 | D75: 4 | E75: 8 | F75: 1
B76: 组织绩效B | C76: =ROUND(C5*15,2) -> 0 | D76: 3 | E76: 11 | F76: 1
B77: 组织绩效B-/C/D | C77: 0 | D77: 1 | E77: 11 | F77: 3
A78: 人数 | B78: 组织绩效/个人绩效强制比例要求 | C78: A | D78: B+ | E78: B | F78: B-/C/D
A79: 16 | B79: 组织绩效A | C79: 3 | D79: 5 | E79: =ROUND(E3*16,2) -> 8 | F79: 0
B80: 组织绩效B+ | C80: 2 | D80: =ROUND(D4*16,2) -> 4 | E80: 9 | F80: 1
B81: 组织绩效B | C81: 0 | D81: 3 | E81: 11 | F81: 2
B82: 组织绩效B-/C/D | C82: 0 | D82: 2 | E82: 11 | F82: 3
A83: 人数 | B83: 组织绩效/个人绩效强制比例要求 | C83: A | D83: B+ | E83: B | F83: B-/C/D
A84: 17 | B84: 组织绩效A | C84: 3 | D84: 5 | E84: 9 | F84: 0
B85: 组织绩效B+ | C85: 2 | D85: 4 | E85: 10 | F85: 1
B86: 组织绩效B | C86: =ROUND(C5*17,2) -> 0 | D86: 3 | E86: 12 | F86: 2
B87: 组织绩效B-/C/D | C87: =ROUND(C6*17,2) -> 0 | D87: 2 | E87: 12 | F87: 3
A88: 人数 | B88: 组织绩效/个人绩效强制比例要求 | C88: A | D88: B+ | E88: B | F88: B-/C/D
A89: 18 （组织B-时就低取整） | B89: 组织绩效A | C89: =ROUND(C3*18,2) -> 3.6 | D89: 5.4 | E89: 9 | F89: 0
B90: 组织绩效B+ | C90: 1.8 | D90: 4.5 | E90: 10 | F90: 0.9
B91: 组织绩效B | C91: =ROUND(C5*18,2) -> 0 | D91: 3.6 | E91: 12 | F91: 1.8
B92: 组织绩效B-/C/D | C92: =ROUND(C6*18,2) -> 0 | D92: 1.8 | E92: 12 | F92: 3.6
A93: 人数 | B93: 组织绩效/个人绩效强制比例要求 | C93: A | D93: B+ | E93: B | F93: B-/C/D
A94: 19 | B94: 组织绩效A | C94: 4 | D94: 6 | E94: 9 | F94: =ROUND(F3*19,2) -> 0
B95: 组织绩效B+ | C95: 2 | D95: 5 | E95: 11 | F95: 1
B96: 组织绩效B | C96: =ROUND(C5*19,2) -> 0 | D96: 4 | E96: 13 | F96: 2
B97: 组织绩效B-/C/D | C97: =ROUND(C6*19,2) -> 0 | D97: 2 | E97: 13 | F97: 4
A98: 人数 | B98: 组织绩效/个人绩效强制比例要求 | C98: A | D98: B+ | E98: B | F98: B-/C/D
A99: 20 | B99: 组织绩效A | C99: =ROUND(C3*20,2) -> 4 | D99: =ROUND(D3*20,2) -> 6 | E99: 10 | F99: 0
B100: 组织绩效B+ | C100: =ROUND(C4*20,2) -> 2 | D100: 5 | E100: 12 | F100: 1
B101: 组织绩效B | C101: =ROUND(C5*20,2) -> 0 | D101: 4 | E101: 14 | F101: 2
B102: 组织绩效B-/C/D | C102: =ROUND(C6*20,2) -> 0 | D102: 2 | E102: 14 | F102: 4
A103: 人数 | B103: 组织绩效/个人绩效强制比例要求 | C103: A | D103: B+ | E103: B | F103: B-/C/D
A104: 28 | B104: 组织绩效A | C104: =ROUND(C3*A104,2) -> 5.6 | D104: =ROUND(D3*A104,2) -> 8.4 | E104: =ROUND(E3*A104,2) -> 14 | F104: =ROUND(F3*A104,2) -> 0
B105: 组织绩效B+ | C105: =ROUND(C4*A104,2) -> 2.8 | D105: =ROUND(D4*A104,2) -> 7 | E105: =ROUND(E4*A104,2) -> 16.8 | F105: =ROUND(F4*A104,2) -> 1.4
B106: 组织绩效B | C106: =ROUND(C5*A104,2) -> 0 | D106: =ROUND(D5*A104,2) -> 5.6 | E106: =ROUND(E5*A104,2) -> 19.6 | F106: =ROUND(F5*A104,2) -> 2.8
B107: 组织绩效B-/C/D | C107: =ROUND(C6*A104,2) -> 0 | D107: =ROUND(D6*A104,2) -> 2.8 | E107: =ROUND(E6*A104,2) -> 19.6 | F107: =ROUND(F6*A104,2) -> 5.6
A108: *以上人数为根据比例换算，由于人数取整等情况，实际人数与比例可能存在一定误差。 *人数恰好5人时，取整后单次考核无B-，但两个考核周期需要评出1个B-/C； *人数不足5人（不含单位负责人）的单位，按照若干周期累计达5人后的比例计算绩优、绩差名额。 例如：某单位二季度、三季度均为3人参评（不足5人），两个季度累计后，参评人数为6人（达到5人），以此计算分布比例。 假定：该单位两个季度组织绩效均为B，两个季度累计后，该单位B+名额为6*20%=1.2（取整后1人）、B名额为6*70%=4.2（取整后4人）、B-/C名额为6*10%=0.6（取整后1人）。三季度时，各等级绩效名额，根据二季度绩效已分布情况进行计算。

Sheet 评分人数据
A1: 部门名称 | B1: 部门编码 | C1: 考核人 | D1: 考核人工号 | E1: 评分人 | F1: 评分人工号

Sheet 组织等级
A1: 部门名称 | B1: 部门编码 | C1: 等级

Sheet 基础资料
A1: 组织绩效/个人绩效强制比例要求 | B1: 个人绩效A比例 | C1: 个人绩效B+比例 | D1: 个人绩效B比例 | E1: 个人绩效B-比例 | F1: 个人绩效C比例 | G1: 个人绩效D比例
A2: 组织绩效A | B2: 0.2 | C2: 0.3 | D2: 0.5 | E2: 0 | F2: 0 | G2: 0
A3: 组织绩效B+ | B3: 0.1 | C3: 0.25 | D3: 0.6 | E3: 0.05 | F3: 0.05 | G3: 0.05
A4: 组织绩效B | B4: 0 | C4: 0.2 | D4: 0.7 | E4: 0.1 | F4: 0.1 | G4: 0.1
A5: 组织绩效B- | B5: 0 | C5: 0.1 | D5: 0.7 | E5: 0.2 | F5: 0.2 | G5: 0.2
A6: 组织绩效C | B6: 0 | C6: 0.1 | D6: 0.7 | F6: 0.2
A7: 组织绩效D | B7: 0 | C7: 0.1 | D7: 0.7 | G7: 0.2
